[Event "*** Titled Tuesday Blitz"]
[Site "Chess.com"]
[Date "2020.11.10"]
[Round "10"]
[White "grandcoach"]
[Black "Sergienko_Sergey"]
[Result "0-1"]
[WhiteElo "2108"]
[BlackElo "2284"]
[TimeControl "180+1"]
[EndTime "12:03:04 PST"]
[Termination "Sergienko_Sergey won by checkmate"]

1. e4 {[%clk 0:03:00.9]} 1... c5 {[%clk 0:02:59.5]} 2. b4 {[%clk 0:03:00.2]}
2... cxb4 {[%clk 0:02:54.6]} 3. a3 {[%clk 0:03:00.7]} 3... e6 {[%clk 0:02:50]}
4. axb4 {[%clk 0:02:57.6]} 4... d5 {[%clk 0:02:47.4]} 5. exd5 {[%clk 0:02:44.6]}
5... exd5 {[%clk 0:02:46.7]} 6. b5 {[%clk 0:02:39.4]} 6... Nf6 {[%clk
0:02:44.6]} 7. Nf3 {[%clk 0:02:37.7]} 7... Be7 {[%clk 0:02:40]} 8. Be2 {[%clk
0:02:30.3]} 8... O-O {[%clk 0:02:37.4]} 9. O-O {[%clk 0:02:30.9]} 9... Bg4
{[%clk 0:02:36.8]} 10. Bb2 {[%clk 0:02:28.7]} 10... Nbd7 {[%clk 0:02:35.6]} 11.
Nc3 {[%clk 0:02:17.2]} 11... Re8 {[%clk 0:02:30]} 12. Nd4 {[%clk 0:02:09.6]}
12... Bxe2 {[%clk 0:02:25.3]} 13. Ncxe2 {[%clk 0:02:10.5]} 13... Bd6 {[%clk
0:01:59.4]} 14. Ng3 {[%clk 0:01:51.9]} 14... Ne5 {[%clk 0:01:37.1]} 15. Ndf5
{[%clk 0:01:48.6]} 15... Nc4 {[%clk 0:01:28.4]} 16. Bc3 {[%clk 0:01:47.6]} 16...
Be5 {[%clk 0:01:22.3]} 17. Nh5 {[%clk 0:01:27.9]} 17... Nxh5 {[%clk 0:00:57.5]}
18. Qxh5 {[%clk 0:01:25.2]} 18... Bxc3 {[%clk 0:00:56.4]} 19. dxc3 {[%clk
0:01:23.4]} 19... g6 {[%clk 0:00:54.1]} 20. Nh6+ {[%clk 0:01:14.3]} 20... Kg7
{[%clk 0:00:53.9]} 21. Qh3 {[%clk 0:01:08.8]} 21... Qg5 {[%clk 0:00:44]} 22. Ng4
{[%clk 0:01:05.5]} 22... h5 {[%clk 0:00:42.2]} 23. Ne3 {[%clk 0:01:00]} 23...
Nxe3 {[%clk 0:00:40.7]} 24. fxe3 {[%clk 0:00:58.6]} 24... Qxe3+ {[%clk
0:00:40.1]} 25. Qxe3 {[%clk 0:00:55.5]} 25... Rxe3 {[%clk 0:00:40]} 26. Rfd1
{[%clk 0:00:53.7]} 26... Rxc3 {[%clk 0:00:37.5]} 27. Rxd5 {[%clk 0:00:53.6]}
27... Rxc2 {[%clk 0:00:37.6]} 28. Rd7 {[%clk 0:00:52.9]} 28... Re8 {[%clk
0:00:30.1]} 29. Rxb7 {[%clk 0:00:44.3]} 29... Ree2 {[%clk 0:00:29]} 30. Rbxa7
{[%clk 0:00:36.3]} 30... Rxg2+ {[%clk 0:00:28]} 31. Kf1 {[%clk 0:00:36.4]} 31...
Rxh2 {[%clk 0:00:27.4]} 32. Kg1 {[%clk 0:00:35.8]} 32... Rhg2+ {[%clk
0:00:22.2]} 33. Kf1 {[%clk 0:00:35.7]} 33... Rb2 {[%clk 0:00:17]} 34. b6 {[%clk
0:00:29.1]} 34... Rh2 {[%clk 0:00:14]} 35. Kg1 {[%clk 0:00:29.1]} 35... Rh4
{[%clk 0:00:12.9]} 36. Rf1 {[%clk 0:00:22]} 36... Rg4+ {[%clk 0:00:09.5]} 37.
Kh1 {[%clk 0:00:21.8]} 37... Rxb6 {[%clk 0:00:08.2]} 38. Rfxf7+ {[%clk
0:00:20.5]} 38... Kh6 {[%clk 0:00:08.1]} 39. Rh7+ {[%clk 0:00:20]} 39... Kg5
{[%clk 0:00:08.1]} 40. Ra5+ {[%clk 0:00:20.4]} 40... Kh4 {[%clk 0:00:07.7]} 41.
Rf7 {[%clk 0:00:18.4]} 41... Rb1+ {[%clk 0:00:06.9]} 42. Kh2 {[%clk 0:00:18.1]}
42... Rb2+ {[%clk 0:00:06.7]} 43. Kh1 {[%clk 0:00:18]} 43... Rc4 {[%clk
0:00:06.5]} 44. Rf1 {[%clk 0:00:15.6]} 44... g5 {[%clk 0:00:05.9]} 45. Ra3
{[%clk 0:00:13.9]} 45... g4 {[%clk 0:00:05]} 46. Re3 {[%clk 0:00:12.3]} 46...
Rcc2 {[%clk 0:00:04.7]} 47. Rfe1 {[%clk 0:00:10]} 47... Rh2+ {[%clk 0:00:04.3]}
48. Kg1 {[%clk 0:00:10.3]} 48... Rhg2+ {[%clk 0:00:04]} 49. Kf1 {[%clk
0:00:09.7]} 49... Rbf2# {[%clk 0:00:02]} 0-1

[Event "*** Titled Tuesday Blitz"]
[Site "Chess.com"]
[Date "2020.11.10"]
[Round "10"]
[White "BAS8892"]
[Black "FormerProdigy"]
[Result "0-1"]
[WhiteElo "2744"]
[BlackElo "2893"]
[TimeControl "180+1"]
[EndTime "12:03:06 PST"]
[Termination "FormerProdigy won by resignation"]

1. d4 {[%clk 0:03:00.9]} 1... Nf6 {[%clk 0:02:59.8]} 2. Bf4 {[%clk 0:03:00.2]}
2... d5 {[%clk 0:02:54.8]} 3. e3 {[%clk 0:02:59.8]} 3... e6 {[%clk 0:02:50.5]}
4. Nf3 {[%clk 0:02:58.9]} 4... Bd6 {[%clk 0:02:50.5]} 5. Bg3 {[%clk 0:02:59]}
5... b6 {[%clk 0:02:41]} 6. Nbd2 {[%clk 0:02:54]} 6... Bb7 {[%clk 0:02:40]} 7.
c3 {[%clk 0:02:52.9]} 7... Nbd7 {[%clk 0:02:35.1]} 8. Bd3 {[%clk 0:02:52.6]}
8... Bxg3 {[%clk 0:02:19]} 9. hxg3 {[%clk 0:02:52.2]} 9... h6 {[%clk 0:02:07.5]}
10. Qe2 {[%clk 0:02:51]} 10... c5 {[%clk 0:02:06.4]} 11. Ne5 {[%clk 0:02:47.7]}
11... Nxe5 {[%clk 0:01:55.2]} 12. dxe5 {[%clk 0:02:47.2]} 12... Nd7 {[%clk
0:01:56.1]} 13. f4 {[%clk 0:02:47]} 13... Qe7 {[%clk 0:01:43.5]} 14. O-O-O
{[%clk 0:02:45]} 14... O-O-O {[%clk 0:01:42.1]} 15. Kb1 {[%clk 0:02:44.7]} 15...
Kb8 {[%clk 0:01:41.9]} 16. e4 {[%clk 0:02:44.7]} 16... f6 {[%clk 0:01:26.3]} 17.
exd5 {[%clk 0:02:39.2]} 17... Bxd5 {[%clk 0:01:27.2]} 18. exf6 {[%clk
0:02:23.4]} 18... gxf6 {[%clk 0:01:24.9]} 19. Be4 {[%clk 0:02:09.7]} 19... Qf7
{[%clk 0:01:00.8]} 20. c4 {[%clk 0:02:00.1]} 20... f5 {[%clk 0:00:58.6]} 21.
cxd5 {[%clk 0:01:53.6]} 21... fxe4 {[%clk 0:00:58.8]} 22. dxe6 {[%clk
0:01:53.6]} 22... Qxe6 {[%clk 0:00:59.7]} 23. Qxe4 {[%clk 0:01:53.7]} 23...
Qxe4+ {[%clk 0:00:50.1]} 24. Nxe4 {[%clk 0:01:53.3]} 24... Kc7 {[%clk 0:00:51]}
25. g4 {[%clk 0:01:44.2]} 25... Rhg8 {[%clk 0:00:40]} 26. g5 {[%clk 0:01:42.7]}
26... hxg5 {[%clk 0:00:39.7]} 27. Nxg5 {[%clk 0:01:42.7]} 27... Rg6 {[%clk
0:00:18.3]} 28. Rh7 {[%clk 0:01:40]} 28... Kc6 {[%clk 0:00:18.4]} 29. Nf7 {[%clk
0:01:37.1]} 29... Rdg8 {[%clk 0:00:15.7]} 30. Rxd7 {[%clk 0:01:06.2]} 30... Kxd7
{[%clk 0:00:16.6]} 31. Ne5+ {[%clk 0:01:06]} 31... Kd6 {[%clk 0:00:08.7]} 32.
Nxg6 {[%clk 0:01:04]} 32... Rxg6 {[%clk 0:00:09.6]} 33. Rxa7 {[%clk 0:00:59.6]}
33... Rxg2 {[%clk 0:00:09.5]} 34. Rb7 {[%clk 0:00:59.7]} 34... Kc6 {[%clk
0:00:09]} 35. Rf7 {[%clk 0:00:59.5]} 35... Rf2 {[%clk 0:00:07.4]} 36. a4 {[%clk
0:00:58.6]} 36... c4 {[%clk 0:00:05.6]} 37. f5 {[%clk 0:00:54.8]} 37... Kc5
{[%clk 0:00:05.6]} 38. Rf6 {[%clk 0:00:52]} 38... Kb4 {[%clk 0:00:04.1]} 39.
Rxb6+ {[%clk 0:00:51]} 39... Kxa4 {[%clk 0:00:04.5]} 40. f6 {[%clk 0:00:50.8]}
40... Ka5 {[%clk 0:00:04.1]} 41. Re6 {[%clk 0:00:50]} 41... Kb5 {[%clk
0:00:02.6]} 42. Kc1 {[%clk 0:00:47.9]} 42... Kc5 {[%clk 0:00:03]} 43. Ra6 {[%clk
0:00:47.5]} 43... Kb5 {[%clk 0:00:03.1]} 44. Re6 {[%clk 0:00:46.8]} 44... Kc5
{[%clk 0:00:03.6]} 45. Kb1 {[%clk 0:00:33.1]} 45... Kb5 {[%clk 0:00:04]} 46.
Re5+ {[%clk 0:00:24]} 46... Kb4 {[%clk 0:00:03.9]} 47. Re6 {[%clk 0:00:24.2]}
47... c3 {[%clk 0:00:03.2]} 48. Re4+ {[%clk 0:00:16.6]} 48... Kb3 {[%clk
0:00:02.9]} 49. Re1 {[%clk 0:00:12.4]} 49... Rxb2+ {[%clk 0:00:02.8]} 50. Kc1
{[%clk 0:00:12.6]} 50... Ra2 {[%clk 0:00:03.7]} 51. Kb1 {[%clk 0:00:12.1]} 51...
c2+ {[%clk 0:00:03.2]} 52. Kc1 {[%clk 0:00:13]} 52... Ra1+ {[%clk 0:00:03.8]}
53. Kd2 {[%clk 0:00:13.8]} 53... Rxe1 {[%clk 0:00:04.5]} 54. Kxe1 {[%clk
0:00:14.2]} 54... c1=Q+ {[%clk 0:00:05.3]} 0-1

[Event "*** Titled Tuesday Blitz"]
[Site "Chess.com"]
[Date "2020.11.10"]
[Round "10"]
[White "InitiatingASC"]
[Black "sokidze"]
[Result "1-0"]
[WhiteElo "2423"]
[BlackElo "2540"]
[TimeControl "180+1"]
[EndTime "12:03:07 PST"]
[Termination "InitiatingASC won on time"]

1. Nf3 {[%clk 0:03:00.9]} 1... c5 {[%clk 0:03:00]} 2. g3 {[%clk 0:03:01.8]} 2...
Nc6 {[%clk 0:03:00.3]} 3. Bg2 {[%clk 0:03:02.3]} 3... e5 {[%clk 0:03:00.7]} 4.
c4 {[%clk 0:03:01.5]} 4... g6 {[%clk 0:03:01.1]} 5. O-O {[%clk 0:03:01.2]} 5...
Bg7 {[%clk 0:03:01.6]} 6. d3 {[%clk 0:03:01.8]} 6... Nge7 {[%clk 0:03:01.6]} 7.
Nc3 {[%clk 0:03:02.5]} 7... O-O {[%clk 0:03:02]} 8. Ne1 {[%clk 0:03:02.3]} 8...
d6 {[%clk 0:03:02]} 9. Nc2 {[%clk 0:03:02.7]} 9... Be6 {[%clk 0:03:02.7]} 10.
Rb1 {[%clk 0:03:02.8]} 10... d5 {[%clk 0:03:00.7]} 11. cxd5 {[%clk 0:03:02.1]}
11... Nxd5 {[%clk 0:03:01.6]} 12. a3 {[%clk 0:02:56.7]} 12... Rc8 {[%clk
0:02:45.2]} 13. Ne3 {[%clk 0:02:56]} 13... Nxc3 {[%clk 0:02:27.1]} 14. bxc3
{[%clk 0:02:56.9]} 14... b6 {[%clk 0:02:27.7]} 15. Qa4 {[%clk 0:02:38.1]} 15...
Qd7 {[%clk 0:02:13.1]} 16. Re1 {[%clk 0:02:27.5]} 16... Rfd8 {[%clk 0:02:09.8]}
17. Nc4 {[%clk 0:02:17.7]} 17... Ne7 {[%clk 0:01:52.8]} 18. Qxd7 {[%clk
0:01:59.8]} 18... Rxd7 {[%clk 0:01:53.7]} 19. Ne3 {[%clk 0:01:57.9]} 19... c4
{[%clk 0:01:43.3]} 20. dxc4 {[%clk 0:01:28.5]} 20... Bxc4 {[%clk 0:01:41.2]} 21.
Bh3 {[%clk 0:01:16.4]} 21... f5 {[%clk 0:01:39.5]} 22. Nxc4 {[%clk 0:01:15.8]}
22... Rxc4 {[%clk 0:01:39.4]} 23. e4 {[%clk 0:01:15.9]} 23... Rxc3 {[%clk
0:01:26.1]} 24. exf5 {[%clk 0:01:15.4]} 24... gxf5 {[%clk 0:01:26]} 25. Bb2
{[%clk 0:01:14.1]} 25... Rc5 {[%clk 0:01:26]} 26. a4 {[%clk 0:01:09.3]} 26...
Ra5 {[%clk 0:00:55.6]} 27. Bc3 {[%clk 0:00:46]} 27... Rxa4 {[%clk 0:00:40.3]}
28. Bxe5 {[%clk 0:00:46.1]} 28... Ra5 {[%clk 0:00:40.8]} 29. Bxg7 {[%clk
0:00:33.8]} 29... Kxg7 {[%clk 0:00:41.7]} 30. Re2 {[%clk 0:00:33.4]} 30... Rc5
{[%clk 0:00:38.4]} 31. Rbe1 {[%clk 0:00:33.2]} 31... Ng6 {[%clk 0:00:38.7]} 32.
Bg2 {[%clk 0:00:19.5]} 32... a5 {[%clk 0:00:37.4]} 33. h4 {[%clk 0:00:18.8]}
33... h6 {[%clk 0:00:25.2]} 34. h5 {[%clk 0:00:18]} 34... Nf8 {[%clk 0:00:24.9]}
35. Re7+ {[%clk 0:00:17.6]} 35... Rxe7 {[%clk 0:00:25.3]} 36. Rxe7+ {[%clk
0:00:17.1]} 36... Kf6 {[%clk 0:00:25.9]} 37. Rb7 {[%clk 0:00:15]} 37... Rc1+
{[%clk 0:00:18.4]} 38. Kh2 {[%clk 0:00:14.3]} 38... Rb1 {[%clk 0:00:19.3]} 39.
Bd5 {[%clk 0:00:12]} 39... Ne6 {[%clk 0:00:06.4]} 40. Rh7 {[%clk 0:00:07.5]}
40... Ng7 {[%clk 0:00:02.8]} 41. Rxh6+ {[%clk 0:00:07.5]} 41... Ke7 {[%clk
0:00:02.5]} 42. Rh7 {[%clk 0:00:07.2]} 42... Kf8 {[%clk 0:00:02.5]} 43. h6
{[%clk 0:00:07.5]} 43... Nh5 {[%clk 0:00:02.4]} 44. Rb7 {[%clk 0:00:07.1]} 44...
Nf6 {[%clk 0:00:01.8]} 45. h7 {[%clk 0:00:06.6]} 45... Nxh7 {[%clk 0:00:02.1]}
46. Rxh7 {[%clk 0:00:07.2]} 46... a4 {[%clk 0:00:02.7]} 47. Ra7 {[%clk
0:00:06.8]} 47... b5 {[%clk 0:00:03.2]} 48. Bc6 {[%clk 0:00:07.3]} 48... Rb3
{[%clk 0:00:02.2]} 49. Rb7 {[%clk 0:00:07]} 49... b4 {[%clk 0:00:02.3]} 50. Bxa4
{[%clk 0:00:07]} 50... Rb2 {[%clk 0:00:01.9]} 51. Kg2 {[%clk 0:00:06.9]} 51...
Ra2 {[%clk 0:00:02.4]} 52. Bb3 {[%clk 0:00:07.1]} 52... Rb2 {[%clk 0:00:01.6]}
53. Be6 {[%clk 0:00:07.3]} 1-0

[Event "*** Titled Tuesday Blitz"]
[Site "Chess.com"]
[Date "2020.11.10"]
[Round "10"]
[White "A-S-00"]
[Black "lacafi"]
[Result "0-1"]
[WhiteElo "2327"]
[BlackElo "2158"]
[TimeControl "180+1"]
[EndTime "12:03:07 PST"]
[Termination "lacafi won on time"]

1. d4 {[%clk 0:03:00]} 1... f5 {[%clk 0:02:59.7]} 2. c4 {[%clk 0:02:59.1]} 2...
Nf6 {[%clk 0:02:59.9]} 3. Nf3 {[%clk 0:02:57.6]} 3... g6 {[%clk 0:03:00.1]} 4.
Nc3 {[%clk 0:02:56.9]} 4... Bg7 {[%clk 0:03:00.6]} 5. b4 {[%clk 0:02:55.3]} 5...
O-O {[%clk 0:03:01]} 6. Bb2 {[%clk 0:02:54.8]} 6... d6 {[%clk 0:03:01.3]} 7. e3
{[%clk 0:02:53.3]} 7... Qe8 {[%clk 0:03:00.6]} 8. a4 {[%clk 0:02:52.2]} 8... c6
{[%clk 0:03:00.8]} 9. d5 {[%clk 0:02:49.7]} 9... e5 {[%clk 0:02:47]} 10. dxe6
{[%clk 0:02:45.3]} 10... Qxe6 {[%clk 0:02:46.1]} 11. Be2 {[%clk 0:02:32.2]}
11... Nbd7 {[%clk 0:02:31.1]} 12. O-O {[%clk 0:02:22]} 12... Ne5 {[%clk
0:02:30.9]} 13. Nd4 {[%clk 0:02:18.5]} 13... Qe7 {[%clk 0:02:29.1]} 14. Qb3
{[%clk 0:02:13.5]} 14... Kh8 {[%clk 0:02:27.5]} 15. Nf3 {[%clk 0:01:52.8]} 15...
Neg4 {[%clk 0:02:05.3]} 16. Rad1 {[%clk 0:01:42.3]} 16... Nxe3 {[%clk
0:01:47.3]} 17. fxe3 {[%clk 0:01:39.7]} 17... Qxe3+ {[%clk 0:01:48.2]} 18. Kh1
{[%clk 0:01:32.1]} 18... Ne4 {[%clk 0:01:45.5]} 19. Nxe4 {[%clk 0:01:27.5]}
19... Qxb3 {[%clk 0:01:44]} 20. Bxg7+ {[%clk 0:01:23.6]} 20... Kxg7 {[%clk
0:01:44.6]} 21. Nxd6 {[%clk 0:01:21]} 21... h6 {[%clk 0:01:29.1]} 22. b5 {[%clk
0:01:16.5]} 22... Qxa4 {[%clk 0:01:22.3]} 23. Nd4 {[%clk 0:01:02.8]} 23... c5
{[%clk 0:01:01.2]} 24. Nf3 {[%clk 0:00:46.5]} 24... Rd8 {[%clk 0:00:36]} 25. Ne5
{[%clk 0:00:41.8]} 25... Be6 {[%clk 0:00:31]} 26. Nxb7 {[%clk 0:00:33.8]} 26...
Rxd1 {[%clk 0:00:22.6]} 27. Rxd1 {[%clk 0:00:33]} 27... Qc2 {[%clk 0:00:22]} 28.
Bf3 {[%clk 0:00:28.9]} 28... Re8 {[%clk 0:00:18.6]} 29. Nxc5 {[%clk 0:00:19]}
29... Bg8 {[%clk 0:00:13.6]} 30. Ncd7 {[%clk 0:00:16.5]} 30... Bxc4 {[%clk
0:00:08.9]} 31. h3 {[%clk 0:00:15.7]} 31... Be6 {[%clk 0:00:08.1]} 32. Rd6
{[%clk 0:00:11.3]} 32... Bxd7 {[%clk 0:00:07.2]} 33. Rxd7+ {[%clk 0:00:09.8]}
33... Kf6 {[%clk 0:00:07.5]} 34. Nc6 {[%clk 0:00:08.6]} 34... Qc1+ {[%clk
0:00:05.6]} 35. Kh2 {[%clk 0:00:08.9]} 35... Qf4+ {[%clk 0:00:05.6]} 36. Kg1
{[%clk 0:00:09.2]} 36... Qa4 {[%clk 0:00:02.7]} 37. Rd6+ {[%clk 0:00:08]} 37...
Kg5 {[%clk 0:00:02.4]} 38. Kf2 {[%clk 0:00:06.2]} 38... Qa2+ {[%clk 0:00:02.3]}
39. Kf1 {[%clk 0:00:04.7]} 39... Qa3 {[%clk 0:00:02.7]} 40. Rd1 {[%clk
0:00:03.2]} 40... Qb2 {[%clk 0:00:02.6]} 41. Nd4 {[%clk 0:00:02.8]} 41... Qc3
{[%clk 0:00:01.8]} 42. Ne2 {[%clk 0:00:02.4]} 42... Qc4 {[%clk 0:00:02.1]} 43.
Rd4 {[%clk 0:00:01.8]} 43... Qxb5 {[%clk 0:00:02.2]} 44. h4+ {[%clk 0:00:01.8]}
44... Kf6 {[%clk 0:00:01.8]} 45. Rd6+ {[%clk 0:00:02.4]} 45... Ke7 {[%clk
0:00:01.7]} 46. Rd2 {[%clk 0:00:01.5]} 46... Rc8 {[%clk 0:00:01.8]} 47. Kf2
{[%clk 0:00:01.5]} 47... Kf6 {[%clk 0:00:01.9]} 48. Rd6+ {[%clk 0:00:01.1]}
48... Ke7 {[%clk 0:00:02]} 0-1

[Event "*** Titled Tuesday Blitz"]
[Site "Chess.com"]
[Date "2020.11.10"]
[Round "10"]
[White "Zq1"]
[Black "Matibar"]
[Result "1-0"]
[WhiteElo "2594"]
[BlackElo "2764"]
[TimeControl "180+1"]
[EndTime "12:03:08 PST"]
[Termination "Zq1 won on time"]

1. d4 {[%clk 0:03:00.9]} 1... Nf6 {[%clk 0:02:57.8]} 2. c4 {[%clk 0:03:00.9]}
2... g6 {[%clk 0:02:58.3]} 3. Nc3 {[%clk 0:03:00.4]} 3... Bg7 {[%clk 0:02:58.5]}
4. e4 {[%clk 0:02:59.9]} 4... d6 {[%clk 0:02:59]} 5. Nf3 {[%clk 0:03:00]} 5...
O-O {[%clk 0:02:58.9]} 6. Be2 {[%clk 0:03:00.2]} 6... e5 {[%clk 0:02:57]} 7. O-O
{[%clk 0:02:59.6]} 7... Nc6 {[%clk 0:02:56.9]} 8. d5 {[%clk 0:02:59.4]} 8... Ne7
{[%clk 0:02:56.8]} 9. Ne1 {[%clk 0:02:59.4]} 9... c5 {[%clk 0:02:31.1]} 10. Be3
{[%clk 0:02:56.1]} 10... h5 {[%clk 0:02:29.4]} 11. h3 {[%clk 0:02:52.3]} 11...
Nh7 {[%clk 0:02:26.2]} 12. Nd3 {[%clk 0:02:49.8]} 12... f5 {[%clk 0:02:15.3]}
13. exf5 {[%clk 0:02:48.6]} 13... Nxf5 {[%clk 0:02:12]} 14. Bd2 {[%clk
0:02:28.2]} 14... Qh4 {[%clk 0:02:05.5]} 15. Bf3 {[%clk 0:02:00.2]} 15... Nd4
{[%clk 0:01:48.8]} 16. Be4 {[%clk 0:01:59.8]} 16... Ng5 {[%clk 0:01:36]} 17.
Bxg5 {[%clk 0:01:58.1]} 17... Qxg5 {[%clk 0:01:36]} 18. Kh1 {[%clk 0:01:52.5]}
18... Bf5 {[%clk 0:01:18.7]} 19. Bxf5 {[%clk 0:01:50.2]} 19... gxf5 {[%clk
0:00:38.1]} 20. f4 {[%clk 0:01:49.2]} 20... Qg6 {[%clk 0:00:38.3]} 21. fxe5
{[%clk 0:01:41.1]} 21... dxe5 {[%clk 0:00:39.2]} 22. Nxc5 {[%clk 0:01:37.6]}
22... Rac8 {[%clk 0:00:38.9]} 23. Ne6 {[%clk 0:01:31.3]} 23... Nxe6 {[%clk
0:00:38.2]} 24. dxe6 {[%clk 0:01:31]} 24... Qxe6 {[%clk 0:00:38.8]} 25. Qd5
{[%clk 0:01:27.5]} 25... Qxd5 {[%clk 0:00:38.6]} 26. Nxd5 {[%clk 0:01:27.1]}
26... Rf7 {[%clk 0:00:30]} 27. b3 {[%clk 0:01:16.1]} 27... Kh7 {[%clk
0:00:27.9]} 28. Rae1 {[%clk 0:01:12.2]} 28... Kg6 {[%clk 0:00:27.1]} 29. g3
{[%clk 0:01:07]} 29... b5 {[%clk 0:00:18.7]} 30. Ne3 {[%clk 0:00:54.7]} 30...
bxc4 {[%clk 0:00:17.9]} 31. Nxc4 {[%clk 0:00:54.8]} 31... Rc5 {[%clk 0:00:17.1]}
32. Re2 {[%clk 0:00:49.5]} 32... e4 {[%clk 0:00:16.9]} 33. g4 {[%clk 0:00:44.9]}
33... hxg4 {[%clk 0:00:16.2]} 34. hxg4 {[%clk 0:00:45.1]} 34... f4 {[%clk
0:00:11.7]} 35. Rxe4 {[%clk 0:00:43.4]} 35... Kg5 {[%clk 0:00:12.1]} 36. Nd6
{[%clk 0:00:25.5]} 36... Rf8 {[%clk 0:00:11.6]} 37. Nf5 {[%clk 0:00:24.6]} 37...
Rh8+ {[%clk 0:00:08.1]} 38. Kg1 {[%clk 0:00:22.7]} 38... Bf6 {[%clk 0:00:08.1]}
39. Rexf4 {[%clk 0:00:20.7]} 39... Rc2 {[%clk 0:00:07.9]} 40. R1f2 {[%clk
0:00:18.1]} 40... Rc1+ {[%clk 0:00:07.7]} 41. Kg2 {[%clk 0:00:17.9]} 41... Be5
{[%clk 0:00:08.1]} 42. Re4 {[%clk 0:00:16]} 42... Rh2+ {[%clk 0:00:07.9]} 43.
Kf3 {[%clk 0:00:16.1]} 43... Rc3+ {[%clk 0:00:05.9]} 44. Re3 {[%clk 0:00:13.3]}
44... Rxe3+ {[%clk 0:00:04.7]} 45. Nxe3 {[%clk 0:00:12.3]} 45... Rh3+ {[%clk
0:00:05.2]} 46. Ke4 {[%clk 0:00:12.4]} 46... Bc7 {[%clk 0:00:03.8]} 47. Rf5+
{[%clk 0:00:12.4]} 47... Kg6 {[%clk 0:00:04.1]} 48. Nd5 {[%clk 0:00:12.5]} 48...
Bh2 {[%clk 0:00:03.9]} 49. Ne7+ {[%clk 0:00:11.5]} 49... Kg7 {[%clk 0:00:03.9]}
50. Rf2 {[%clk 0:00:10.4]} 50... Bg1 {[%clk 0:00:03.8]} 51. Nf5+ {[%clk
0:00:09.5]} 51... Kg6 {[%clk 0:00:03.6]} 52. Rg2 {[%clk 0:00:09.9]} 52... Bb6
{[%clk 0:00:03.3]} 53. g5 {[%clk 0:00:08.7]} 53... Rh1 {[%clk 0:00:01.4]} 54.
Ne7+ {[%clk 0:00:08.4]} 54... Kf7 {[%clk 0:00:01.1]} 55. g6+ {[%clk 0:00:08.6]}
1-0

[Event "*** Titled Tuesday Blitz"]
[Site "Chess.com"]
[Date "2020.11.10"]
[Round "10"]
[White "Chigorinetz"]
[Black "1977Ivan"]
[Result "0-1"]
[WhiteElo "2554"]
[BlackElo "2695"]
[TimeControl "180+1"]
[EndTime "12:03:08 PST"]
[Termination "1977Ivan won by checkmate"]

1. e4 {[%clk 0:03:00.9]} 1... c5 {[%clk 0:02:59.3]} 2. Nc3 {[%clk 0:03:00.2]}
2... Nc6 {[%clk 0:02:57.9]} 3. Nge2 {[%clk 0:03:00]} 3... g6 {[%clk 0:02:57.3]}
4. d4 {[%clk 0:02:59.7]} 4... cxd4 {[%clk 0:02:57.2]} 5. Nxd4 {[%clk 0:03:00.6]}
5... Bg7 {[%clk 0:02:57.6]} 6. Nb3 {[%clk 0:03:00.8]} 6... Nf6 {[%clk
0:02:52.7]} 7. Be2 {[%clk 0:03:00.8]} 7... O-O {[%clk 0:02:52.6]} 8. O-O {[%clk
0:03:00.9]} 8... d6 {[%clk 0:02:53]} 9. Re1 {[%clk 0:03:00.6]} 9... a6 {[%clk
0:02:50]} 10. Bf1 {[%clk 0:03:00.3]} 10... b5 {[%clk 0:02:48.8]} 11. Nd5 {[%clk
0:03:00.5]} 11... Nd7 {[%clk 0:02:46.6]} 12. c3 {[%clk 0:03:00.4]} 12... Bb7
{[%clk 0:02:41.4]} 13. Bg5 {[%clk 0:02:59.6]} 13... h6 {[%clk 0:02:39.6]} 14.
Bh4 {[%clk 0:02:59.3]} 14... g5 {[%clk 0:02:39.1]} 15. Bg3 {[%clk 0:02:59.4]}
15... e6 {[%clk 0:02:37]} 16. Ne3 {[%clk 0:02:55.1]} 16... Nde5 {[%clk
0:02:35.3]} 17. a4 {[%clk 0:02:48.8]} 17... b4 {[%clk 0:02:33.9]} 18. c4 {[%clk
0:02:44.8]} 18... Na5 {[%clk 0:02:02.2]} 19. Nd2 {[%clk 0:02:23.2]} 19... Rc8
{[%clk 0:01:56.9]} 20. Rc1 {[%clk 0:02:22]} 20... Qb6 {[%clk 0:01:45.9]} 21. b3
{[%clk 0:02:18]} 21... Nac6 {[%clk 0:01:43.7]} 22. Qh5 {[%clk 0:02:14]} 22...
Nd4 {[%clk 0:01:38.8]} 23. h4 {[%clk 0:02:07.5]} 23... Rc5 {[%clk 0:01:33.6]}
24. hxg5 {[%clk 0:02:05.1]} 24... hxg5 {[%clk 0:01:34.5]} 25. Rb1 {[%clk
0:01:51.5]} 25... Qd8 {[%clk 0:01:30]} 26. f3 {[%clk 0:01:40.1]} 26... g4 {[%clk
0:01:14.8]} 27. Bxe5 {[%clk 0:01:31.3]} 27... Rxe5 {[%clk 0:01:08.3]} 28. Qxg4
{[%clk 0:01:30.2]} 28... Rg5 {[%clk 0:01:07.6]} 29. Qh3 {[%clk 0:01:28.8]} 29...
Be5 {[%clk 0:01:01.5]} 30. Ng4 {[%clk 0:00:58.8]} 30... Bf4 {[%clk 0:01:00.6]}
31. e5 {[%clk 0:00:46.7]} 31... dxe5 {[%clk 0:00:49.4]} 32. Ne4 {[%clk
0:00:45.9]} 32... Bxe4 {[%clk 0:00:48.7]} 33. Rxe4 {[%clk 0:00:45.4]} 33... f5
{[%clk 0:00:46.6]} 34. Rxf4 {[%clk 0:00:33.5]} 34... exf4 {[%clk 0:00:43.9]} 35.
Ne5 {[%clk 0:00:33.3]} 35... Kg7 {[%clk 0:00:30.6]} 36. Qh2 {[%clk 0:00:29.6]}
36... Qb6 {[%clk 0:00:19.6]} 37. c5 {[%clk 0:00:20.8]} 37... Qxc5 {[%clk
0:00:17.9]} 38. Nd3 {[%clk 0:00:20.7]} 38... Nxf3+ {[%clk 0:00:16.9]} 39. Kh1
{[%clk 0:00:21]} 39... Nxh2 {[%clk 0:00:15.5]} 40. Nxc5 {[%clk 0:00:21.1]} 40...
Rh5 {[%clk 0:00:14.1]} 41. Nxe6+ {[%clk 0:00:17.9]} 41... Kf6 {[%clk 0:00:14]}
42. g4 {[%clk 0:00:18.1]} 42... Nxg4+ {[%clk 0:00:11.8]} 43. Kg2 {[%clk
0:00:18]} 43... Kxe6 {[%clk 0:00:12]} 44. Rd1 {[%clk 0:00:17.8]} 44... Rh2+
{[%clk 0:00:10.2]} 45. Kg1 {[%clk 0:00:17.8]} 45... Rfh8 {[%clk 0:00:10.1]} 46.
Bc4+ {[%clk 0:00:17.6]} 46... Ke5 {[%clk 0:00:10.3]} 47. Re1+ {[%clk 0:00:17.1]}
47... Ne3 {[%clk 0:00:09.5]} 48. Re2 {[%clk 0:00:11.9]} 48... Rxe2 {[%clk
0:00:08.7]} 49. Bxe2 {[%clk 0:00:12]} 49... Ke4 {[%clk 0:00:09.6]} 50. Bxa6
{[%clk 0:00:11.6]} 50... f3 {[%clk 0:00:09.7]} 51. Bb7+ {[%clk 0:00:10.9]} 51...
Kf4 {[%clk 0:00:10.6]} 52. a5 {[%clk 0:00:10.6]} 52... Kg3 {[%clk 0:00:10.2]}
53. Bxf3 {[%clk 0:00:10.6]} 53... Kxf3 {[%clk 0:00:11.1]} 54. a6 {[%clk
0:00:10.4]} 54... f4 {[%clk 0:00:11.6]} 55. a7 {[%clk 0:00:10.6]} 55... Kg3
{[%clk 0:00:11.3]} 56. a8=Q {[%clk 0:00:09.7]} 56... Rxa8 {[%clk 0:00:11.7]} 57.
Kh1 {[%clk 0:00:10]} 57... Ra1# {[%clk 0:00:11.8]} 0-1